[Event "European Women-ch 2023"]
[Site "Petrovac"]
[Date "2023.03.25"]
[Round "7.9"]
[White "Vega Gutierrez, Sabrina"]
[Black "Maltsevskaya, Aleksandra"]
[Result "0-1"]
[Annotator "TA"]
[ECO "B36"]
[WhiteElo "2361"]
[BlackElo "2388"]
[PlyCount "128"]
[EventDate "2023.03.15"]
[EventType "swiss"]
[EventCountry "MNE"]
[SourceTitle "playchess.com"]
[Source "ChessBase"]
[SourceQuality "1"]
[TimeControl "40/5400+30:1800+30"]

{[%evp 18,128,41,35,41,29,40,23,29,23,44,13,23,17,22,18,22,16,19,17,22,16,27,17,34,34,54,39,29,24,36,6,89,89,102,89,86,99,99,79,58,72,65,0,2,0,0,0,0,-30,-29,-94,-81,-187,-223,-178,-131,-196,-120,-297,-354,-316,-71,-398,-282,-483,-471,-489,-488,-455,-463,-464,-400,-382,-400,-507,-506,-456,-283,-343,-234,-502,-470,-454,-421,-413,-242,-1596,-1027,-1640,-1640,-1469,-1329,-3060,-2952,-1687,-1391,-7389,-6539,-5108,-5220,-5220,-4069,-5544,-5554,-29962,-29963,-29964,-29967,-29966,-29967,-29948,-11972]} 1. e4 {[%emt 0:00:04]} c5 {[%emt 0:00:07]} 2. Nf3 {[%emt 0:00:05]} g6 {[%emt 0:00:07]} 3. d4 {[%emt 0:00:39]} cxd4 {[%emt 0:00:08]} 4. Nxd4 {[%emt 0:02:47]} Nc6 {[%emt 0:00:07]} 5. c4 {[%emt 0:00:39]} Nf6 {[%emt 0:00:11]} 6. Nc3 {[%emt 0:00:06]} Nxd4 {[%emt 0:00:08]} 7. Qxd4 {[%emt 0:00:08]} d6 {[%emt 0:00:07]} 8. Be2 {[%emt 0:00:39]} Bg7 {[%emt 0:00:08]} 9. Be3 {[%emt 0:00:25]} O-O {[%emt 0:00:12]} 10. Qd3 {[%emt 0:00:44]} a5 $1 {[%emt 0:00:28][%mdl 4] is currently scoring better than 10...Be6. B36: Sicilian: Maroczy Bind: Gurgenidze System.} 11. O-O {[%emt 0:00:21]} a4 {[%emt 0:00:30]} 12. f4 {[%emt 0:01:26]} Bd7 {[%emt 0:00:31] White has an edge.} 13. Rad1 {[%emt 0:16:54]} Bc6 {[%emt 0:01:53]} 14. Kh1 {[%emt 0:00:28]} Qa5 {[%emt 0:05:48]} 15. Bd4 {[%emt 0:01:57]} Nd7 {[%emt 0:09:37]} 16. Bxg7 {[%emt 0:07:27]} Kxg7 {[%emt 0:00:07] [#]} 17. Nd5 $146 {[%emt 0:02:23]} ({Predecessor:} 17. Bg4 Nc5 18. Qd4+ f6 19. Nd5 Bxd5 20. exd5 b5 21. Rde1 Ra7 22. Be2 bxc4 23. Bxc4 {1-0 Zanan,E (2510)-Kovalskyi,R (2133) Prague Summer op 9th 2022 (6)}) 17... Bxd5 {[%emt 0:06:47]} 18. exd5 {[%emt 0:00:05]} Qb4 {[%emt 0:01:16]} 19. Qd4+ {[%emt 0:07:27]} Kg8 {[%emt 0:00:08]} 20. Rf3 {[%emt 0:02:12][%cal Bf1f3,Bf3e3,Be3h3][%mdl 32]} Rac8 {[%emt 0:06:53][%cal Ob7b5]} 21. Re3 {[%emt 0:05:38] Black is weak on the light squares} Rfe8 {[%emt 0:15:13]} 22. f5 {[%emt 0:09:42]} Ne5 {[%emt 0:20:16]} 23. a3 {[%emt 0:02:44]} Qc5 {[%emt 0:00:22]} 24. Qf4 {[%emt 0:00:19]} Kg7 {[%emt 0:11:47] Inhibits Qh6+.} (24... Nxc4 $2 25. Rc3 Qb6 26. fxg6 hxg6 27. Bxc4 $18) (24... Kh8 $1 $11 {remains equal.}) 25. Rh3 $1 $16 {[%emt 0:00:41] Threatening mate with Qh6+.} h5 {[%emt 0:02:03]} 26. fxg6 {[%emt 0:02:39]} (26. Qh4 {feels hotter.} Rc7 27. g4 Rh8 28. gxh5 gxh5 29. f6+) 26... fxg6 {[%emt 0:00:44] [#]} 27. Rxh5 $1 {[%emt 0:00:52] Intending Qh6+ and mate.} Rh8 {[%emt 0:09:30] Wards off Qh6+} (27... gxh5 28. Qg5+ Kh8 29. Qxh5+ Kg7 30. Qg5+ Kh8 31. Qh4+ Kg7 32. Qg3+ Kh6 33. Bd3 $18) 28. Rxe5 {[%emt 0:14:22]} dxe5 {[%emt 0:00:06]} 29. Qxe5+ {[%emt 0:00:07]} Kg8 {[%emt 0:00:03]} 30. Qe6+ {[%emt 0:01:00]} (30. Qe4 $14 Qd6 31. h3) 30... Kg7 $11 {[%emt 0:00:06]} 31. d6 {[%emt 0:01:20]} Qg5 {[%emt 0:06:07][%cal Oh8h2] Chess con chili.} 32. h3 {[%emt 0:11:53]} (32. dxe7 $2 Rxh2+ 33. Kxh2 Rh8+ $19) 32... exd6 {[%emt 0:00:16]} 33. Qd7+ {[%emt 0:00:50]} (33. Qxd6 Rhd8 34. Qb6 Rxd1+ 35. Bxd1 Rxc4 36. Qxb7+ Kh6 $17) (33. Rxd6 $5 {[%cal Rd6d7]} Kh6 34. Rd7 $15) 33... Kh6 {[%emt 0:00:06]} 34. Rd4 {[%emt 0:05:25]} (34. Qxd6 Rhd8 35. Qb4 Rxd1+ 36. Bxd1 Qc1 $17) (34. Qxa4 $11 {keeps the balance.} Rhf8 35. Bf3 (35. Rxd6 Rf2 36. Bf3 Rf1+ 37. Kh2 Qe5+ 38. g3 Rf2+ 39. Bg2 Qe4 {[%mdl 64] Double Attack})) 34... Rce8 {[%emt 0:01:26]} 35. Rg4 {[%emt 0:02:23]} (35. Qg4 $17) 35... Qf6 $19 {[%emt 0:00:05]} (35... Qc1+ 36. Kh2 Qxb2 37. Rh4+ Kg5 38. Rg4+ Kh6 39. Rh4+ Kg5 40. Rg4+ Kh6 $11) 36. Bf3 {[%emt 0:01:07]} Re1+ {[%emt 0:01:10]} (36... Qxb2 37. Rh4+ (37. Qxb7 $2 Qxb7 38. Bxb7 Re3 $19) (37. Qxd6 Re1+ 38. Kh2 Qe5+ 39. Qxe5 Rxe5 $11) 37... Kg5 38. Rg4+ (38. Qxb7 $2 Re1+ 39. Kh2 Qe5+ 40. g3 Rxh4 $19) 38... Kh6 39. Rh4+ (39. Qxb7 $2 Qxb7 40. Bxb7 Re3 $19) (39. Qxd6 Re1+ 40. Kh2 Qe5+ 41. Qxe5 Rxe5 $15) 39... Kg5 40. Rg4+ (40. Qxb7 $2 Re1+ 41. Kh2 Qe5+ 42. g3 Rxh4 $19) 40... Kh6 $11) 37. Kh2 {[%emt 0:00:02]} Rf8 {[%emt 0:00:06]} (37... Qxb2 $2 38. Rh4+ (38. Qxb7 $2 Qxb7 39. Bxb7 Re3 $17) 38... Kg5 39. Qg4+ (39. Qxb7 $2 Qe5+ 40. g3 Rxh4 $19) 39... Kf6 40. Rxh8 $18) (37... Qe5+ 38. g3 Qe7 39. Qxe7 Rxe7 40. Rh4+ Kg7 41. Rd4 $17) (37... Rhe8 $1 $19 {Hoping for ...R8e3.} 38. Qxb7 Rb1) 38. Qxb7 $2 {[%emt 0:00:55]} (38. Qb5 $17 {was the only chance.}) 38... Qe5+ $1 {[%emt 0:00:38]} 39. g3 {[%emt 0:00:31] [#]} Qe7 {[%emt 0:03:31]} (39... Qc5 40. Rh4+ Kg5 41. Rh5+ gxh5 42. Qg7+ Kf5 43. Qxf8+ Kg6 44. Qg8+ (44. h4 $2 Qf2+ 45. Kh3 Qf1+ 46. Kh2 Re2+ 47. Bxe2 Qxf8 $19) 44... Kh6 45. Qh8+ Kg6 46. Qg8+ Kh6 47. Qh8+ Kg6 48. Qg8+ $11) (39... Re2+ $1 $19 {is more deadly.} 40. Kh1 (40. Bxe2 $2 Qxe2+ 41. Qg2 Rf2 $19) 40... Rxb2 41. Rh4+ Kg5 42. Rg4+ Kf6 43. Rf4+ Qxf4 {[%mdl 64] Double Attack} 44. Qxb2+ Qe5) 40. Qxe7 $4 {[%emt 0:00:00][%mdl 8192]} ({Wrong is} 40. Qd5 $2 Re2+ 41. Kh1 (41. Bxe2 $2 Qxe2+ 42. Qg2 Rf2 $19) 41... Rxb2 42. Rh4+ Kg7 $19) (40. h4 $17) 40... Rxe7 $17 {[%emt 0:00:00][%mdl 4096] Endgame KRR-KRB} 41. Be4 {[%emt 0:06:50] [#]} (41. Kg2 Rb8 42. h4) 41... Rf2+ $1 $19 {[%emt 0:04:47]} 42. Kg1 {[%emt 0:00:03]} Rxb2 {[%emt 0:00:05]} 43. Rxg6+ {[%emt 0:01:17]} Kh5 {[%emt 0:00:06]} 44. Rg4 {[%emt 0:00:09]} Ra2 {[%emt 0:00:12]} 45. Rh4+ {[%emt 0:08:56]} Kg5 {[%emt 0:00:06]} 46. Rf4 {[%emt 0:00:08]} Rxa3 {[%emt 0:01:58]} 47. h4+ {[%emt 0:00:02]} Kh5 {[%emt 0:04:00]} 48. Kg2 {[%emt 0:03:18]} Rb3 {[%emt 0:01:52] ...a3 would be deadly.} 49. Bf3+ $2 {[%emt 0:05:45]} (49. c5 {is the only way for White.} dxc5 50. Bf3+ {[%mdl 64] Discovered Attack} Kh6 51. Rxa4) 49... Kg6 {[%emt 0:03:30]} 50. c5 {[%emt 0:05:04]} a3 {[%emt 0:03:08]} ({Not} 50... dxc5 51. Rxa4 Ree3 52. Rg4+ Kf6 53. Rf4+ Ke5 54. h5 $17) 51. cxd6 {[%emt 0:01:01]} Rd7 {[%emt 0:00:04]} (51... Ra7 $142 52. Be4+ Kg7) 52. g4 $2 {[%emt 0:02:07]} (52. Ra4) 52... Rxd6 {[%emt 0:00:29] White must now prevent ...Rd2+.} 53. Ra4 {[%emt 0:00:03]} Rd2+ {[%emt 0:01:00]} 54. Kg3 {[%emt 0:00:09]} Rdd3 {[%emt 0:00:05]} 55. h5+ {[%emt 0:01:27]} Kf6 {[%emt 0:00:29]} 56. Ra6+ {[%emt 0:00:08]} Ke5 {[%emt 0:01:25]} 57. h6 {[%emt 0:02:34]} Rxf3+ {[%emt 0:00:06]} 58. Kh4 {[%emt 0:00:02]} Rh3+ {[%emt 0:06:30]} 59. Kg5 {[%emt 0:00:05]} Rb4 {[%emt 0:02:50]} 60. Ra5+ {[%emt 0:00:48]} Kd6 {[%emt 0:00:49] ( -> ...Kc6)} 61. Kf5 {[%emt 0:00:30]} Kc6 {[%emt 0:00:05] Black mates.} (61... Rxh6 62. Ra6+ Kd5 63. Rxh6 $11) 62. Ra8 {[%emt 0:01:07]} Kb7 {[%emt 0:01:40]} 63. Ra5 {[%emt 0:00:21]} Rxh6 {[%emt 0:03:26]} 64. Rxa3 {[%emt 0:00:03]} Rc6 {[%emt 0:00:25] Weighted Error Value: White=0.86/Black=0.31} 0-1

[Event "European Women-ch 2023"]
[Site "Petrovac"]
[Date "2023.03.25"]
[Round "7.9"]
[White "Velikic, Adela"]
[Black "Kostina, Veronika"]
[Result "1-0"]
[Annotator "TA"]
[ECO "E16"]
[WhiteElo "2329"]
[BlackElo "1855"]
[PlyCount "133"]
[EventDate "2023.03.15"]
[EventType "swiss"]
[EventCountry "MNE"]
[SourceTitle "playchess.com"]
[Source "ChessBase"]
[SourceQuality "1"]
[TimeControl "40/5400+30:1800+30"]

{[%evp 14,131,51,46,48,40,46,32,46,51,54,43,44,43,55,52,66,41,45,37,42,37,43,34,25,7,33,22,12,27,32,25,33,0,0,0,0,0,0,0,0,0,0,0,0,0,0,0,0,0,0,0,0,0,0,0,0,0,0,0,0,0,0,-3,0,0,0,0,0,0,0,-8,0,17,157,139,135,106,725,745,727,745,722,704,709,704,700,739,700,688,674,644,827,806,705,684,952,872,979,835,29979,29980,29982,29983,29986,29983,29983,29983,29974,2297,29980,29981,29981,29982,29981,29983,29996,29997,29998,29999]} 1. d4 {[%emt 0:00:02]} e6 {[%emt 0:00:09]} 2. c4 {[%emt 0:00:07]} Nf6 {[%emt 0:00:09]} 3. Nf3 {[%emt 0:00:06]} b6 {[%emt 0:01:02]} 4. g3 {[%emt 0:00:11]} Bb7 {[%emt 0:00:37]} 5. Bg2 {[%emt 0:00:10]} Bb4+ {[%emt 0:04:11]} 6. Bd2 {[%emt 0:00:13]} Qe7 {[%emt 0:04:20]} 7. O-O {[%emt 0:01:25]} O-O {[%emt 0:01:07]} 8. Bf4 {[%emt 0:12:38]} Bd6 {[%emt 0:07:45] E16: Queen's Indian: 4 g3 Bb7 5 Bg2 Bb4+.} 9. Bxd6 {[%emt 0:05:49]} Qxd6 {[%emt 0:00:56]} 10. Nc3 {[%emt 0:03:53]} Qe7 {[%emt 0:02:47] White is slightly better.} 11. d5 {[%emt 0:10:44]} d6 {[%emt 0:04:46]} 12. Nd4 {[%emt 0:04:42]} e5 {[%emt 0:04:18]} 13. Nf5 {[%emt 0:01:50]} Qd8 {[%emt 0:01:15]} 14. e4 {[%emt 0:04:16]} Nbd7 {[%emt 0:04:00] [#]} 15. Qd2 $146 {[%emt 0:02:05] White is much more active. The black rooks are badly placed.} ({Predecessor:} 15. f4 Bc8 16. Rc1 Re8 17. b4 g6 18. Ne3 a5 19. a3 exf4 20. gxf4 axb4 21. axb4 Nxe4 22. Nxe4 {0-1 Also Alvarado,L (2182)-Perez Rosales,P (2129) Las Palmas Insular-chT Pref 2011 (11.2)}) 15... a5 {[%emt 0:15:03]} 16. f4 {[%emt 0:05:14]} Bc8 {[%emt 0:05:21]} 17. Rae1 {[%emt 0:04:30]} Re8 {[%emt 0:11:02]} 18. Re2 {[%emt 0:05:52]} Nc5 {[%emt 0:00:25]} 19. fxe5 {[%emt 0:09:34]} Rxe5 {[%emt 0:00:43]} 20. Nd4 {[%emt 0:09:29] Nc6 would be deadly.} Bd7 {[%emt 0:05:59]} 21. Rfe1 {[%emt 0:00:34]} Qe8 {[%emt 0:04:14]} 22. Qc2 {[%emt 0:03:16]} Rc8 {[%emt 0:03:08]} 23. Nf3 {[%emt 0:01:35]} Bg4 {[%emt 0:02:10]} 24. Re3 {[%emt 0:08:50]} Bxf3 {[%emt 0:00:51]} 25. Bxf3 {[%emt 0:00:05]} Ncd7 {[%emt 0:04:21]} 26. Nb5 {[%emt 0:00:49]} Rg5 {[%emt 0:01:12]} 27. Bg2 {[%emt 0:01:23]} Ng4 {[%emt 0:03:22]} 28. R3e2 {[%emt 0:00:59]} Rh5 {[%emt 0:01:32]} 29. h3 {[%emt 0:01:59]} Nge5 {[%emt 0:00:25]} 30. Re3 {[%emt 0:00:35]} Qe7 {[%emt 0:01:02]} 31. Qe2 {[%emt 0:00:43]} Rh6 {[%emt 0:00:40]} 32. Nd4 {[%emt 0:01:06]} Rg6 {[%emt 0:03:05]} 33. b3 {[%emt 0:00:23]} Re8 {[%emt 0:00:53]} 34. Rf1 {[%emt 0:00:52]} Nc5 {[%emt 0:00:56]} 35. Rf4 {[%emt 0:00:42]} Qg5 {[%emt 0:01:26]} 36. Rf5 {[%emt 0:00:46]} Qd8 {[%emt 0:01:26]} 37. Qf1 {[%emt 0:00:36]} Ncd7 {[%emt 0:00:37]} 38. Rf4 {[%emt 0:00:33]} Qg5 {[%emt 0:00:49]} 39. Nf5 {[%emt 0:00:31]} Qd8 {[%emt 0:01:11]} 40. Qe2 {[%emt 0:00:00]} Rf8 {[%emt 0:00:00]} 41. h4 {[%emt 0:06:08][%cal Bh3h4,Bh4h5][%mdl 32]} Nf6 {[%emt 0:07:12]} 42. Bf3 {[%emt 0:02:48]} Nxf3+ {[%emt 0:06:57]} 43. Qxf3 {[%emt 0:01:08]} Qe8 {[%emt 0:01:04]} (43... Re8 $11) 44. h5 $16 {[%emt 0:06:52]} Rg5 {[%emt 0:02:20]} 45. h6 $36 {[%emt 0:01:46][%mdl 2048] White is really pushing.} Nh5 {[%emt 0:01:46][%mdl 8192] This costs Black the game.} (45... Qe5 $16) 46. hxg7 $1 $18 {[%emt 0:01:38][%mdl 64] [#] Remove Defender} Nxg7 {[%emt 0:03:22]} 47. Nh6+ {[%emt 0:01:15]} Kh8 {[%emt 0:00:01]} 48. Nxf7+ {[%emt 0:02:54]} Rxf7 {[%emt 0:00:06]} 49. Rxf7 {[%emt 0:00:04] White wants to mate with Rf8+.} Rxg3+ {[%emt 0:00:11]} 50. Qxg3 {[%emt 0:00:15][%csl Gf7][%cal Rg3g7]} Qxf7 {[%emt 0:00:07][%mdl 4096] Endgame KQR-KQN} 51. Rf3 {[%emt 0:00:39]} Qe8 {[%emt 0:01:56] [#]} 52. e5 $1 {[%emt 0:09:13]} Nh5 {[%emt 0:02:40]} (52... dxe5 53. Qxe5) 53. Qg5 {[%emt 0:00:18] Threatening mate with e6.} dxe5 {[%emt 0:01:27]} 54. Re3 {[%emt 0:01:06]} Ng7 {[%emt 0:01:36]} 55. Rxe5 {[%emt 0:00:46]} Qf8 {[%emt 0:00:34]} 56. Qe7 {[%emt 0:00:53][%cal Re7f8]} Qg8 {[%emt 0:00:26]} 57. Rg5 {[%emt 0:00:16]} (57. Qxc7 $2 Ne6+ 58. Kf2 Nxc7 $19) 57... h6 {[%emt 0:00:20]} 58. Rg2 {[%emt 0:00:21]} Qh7 {[%emt 0:00:38]} 59. Qd8+ {[%emt 0:00:20]} Qg8 {[%emt 0:00:06]} 60. Qxc7 {[%emt 0:00:22]} Qf8 {[%emt 0:00:37]} 61. Qxb6 {[%emt 0:00:51]} (61. Qe5 $142 Qf7 62. d6 b5 63. Rxg7 Qxg7+ 64. Qxg7+ Kxg7 65. d7 h5 66. cxb5) 61... Nf5 {[%emt 0:00:25]} 62. Qc7 {[%emt 0:00:50] ?ev?.} Qe8 {[%emt 0:00:30]} 63. Qf4 {[%emt 0:00:42]} ({Inferior is} 63. Qxa5 Qe3+ 64. Kh2 Qf4+ 65. Kg1 Qc1+ 66. Kf2 (66. Kh2 Qf4+ 67. Kh1 Qf1+ 68. Kh2 Qf4+ $11) 66... Qe3+ 67. Kf1 Qf3+ 68. Kg1 Qe3+ 69. Rf2 (69. Kh2 Qf4+ 70. Kh1 Qf1+ 71. Kh2 Qf4+ $11) 69... Qg5+ 70. Kf1 Qc1+ 71. Ke2 (71. Kg2 Qg5+ 72. Kh1 Qh5+ 73. Rh2 Qf3+ 74. Kg1 Qe3+ 75. Rf2 Qg5+ 76. Rg2 Qe3+ $11) 71... Qe3+ 72. Kf1 Qc1+ 73. Kg2 Qg5+ 74. Kh1 Qh5+ 75. Rh2 (75. Kg1 Qg5+ 76. Rg2 Qe3+ $11) 75... Qf3+ 76. Kg1 Qe3+ 77. Rf2 Qg5+ 78. Rg2 Qe3+ $11) 63... Qe1+ {[%emt 0:04:24]} 64. Kh2 {[%emt 0:00:10]} h5 {[%emt 0:03:08]} 65. Qb8+ {[%emt 0:00:25]} Kh7 {[%emt 0:00:06]} 66. Qg8+ {[%emt 0:00:07]} Kh6 {[%emt 0:00:06]} 67. Qg6# {[%emt 0:00:06] Weighted Error Value: White=0.04 (flawless) /Black=0.23 (precise)} 1-0

[Event "European Women-ch 2023"]
[Site "Petrovac"]
[Date "2023.03.25"]
[Round "7.9"]
[White "Gajcin, Marina"]
[Black "Brunello, Marina"]
[Result "0-1"]
[Annotator "TA"]
[ECO "B51"]
[WhiteElo "2215"]
[BlackElo "2346"]
[PlyCount "88"]
[EventDate "2023.03.15"]
[EventType "swiss"]
[EventCountry "MNE"]
[SourceTitle "playchess.com"]
[Source "ChessBase"]
[SourceQuality "1"]
[TimeControl "40/5400+30:1800+30"]

{[%evp 11,88,13,25,14,11,9,14,10,15,0,0,0,0,0,0,7,5,0,54,0,12,-37,-31,-65,-64,-69,-76,-183,-173,-210,-199,-312,-296,-279,-229,-410,-326,-659,-659,-659,-595,-795,-545,-539,-529,-527,-513,-475,-436,-608,-600,-597,-580,-533,-582,-558,-531,-645,-635,-742,-744,-720,-711,-797,-797,-789,-783,-886,-877,-964,-935,-959,-947,-1164,-1165,-1934,-1069,-1660,-1595]} 1. e4 {[%emt 0:00:04]} c5 {[%emt 0:00:07]} 2. Nf3 {[%emt 0:00:05]} d6 {[%emt 0:00:03]} 3. Bb5+ {[%emt 0:00:07]} Nd7 {[%emt 0:00:06]} 4. d4 {[%emt 0:00:06]} cxd4 {[%emt 0:00:17]} 5. Qxd4 {[%emt 0:00:05]} a6 {[%emt 0:00:03]} 6. Bxd7+ {[%emt 0:00:16]} Bxd7 {[%emt 0:00:04]} 7. c4 {[%emt 0:00:05] B51: Sicilian: Moscow Variation (3 Bb5+) without 3...Bd7.} Nf6 {[%emt 0:01:26]} 8. Bg5 {[%emt 0:00:14]} e6 {[%emt 0:00:07]} 9. Nc3 {[%emt 0:00:11] The position is equal.} h6 {[%emt 0:01:54]} 10. Bxf6 {[%emt 0:00:15]} Qxf6 {[%emt 0:03:07]} 11. e5 {[%emt 0:01:33]} dxe5 {[%emt 0:02:44]} 12. Nxe5 {[%emt 0:00:13][%csl Ge5][%cal Rd4d7] [#]} O-O-O {[%emt 0:00:04]} 13. O-O-O {[%emt 0:00:07]} Be8 {[%emt 0:00:06]} 14. Qe3 {[%emt 0:00:05] [#]} Kb8 $146 {[%emt 0:08:24]} ({Better is} 14... Qe7 $11) ({Predecessor:} 14... Bb4 15. Ne2 Ba4 16. b3 Bc6 17. f3 Bd6 18. Rxd6 Rxd6 19. Rd1 Rxd1+ 20. Kxd1 Rd8+ {0-1 Dragnev,V (2520)-Heimann,A (2588) Bad Ragaz Accentus YM 2017 (8)}) 15. f4 {[%emt 0:34:03] And now Ne4 would win.} Qe7 {[%emt 0:14:51]} 16. g3 {[%emt 0:28:19]} (16. Rxd8+ $11 {deserves consideration.} Qxd8 17. c5 (17. Rd1 Qc7 $15)) 16... Rc8 {[%emt 0:17:18]} 17. Qd3 {[%emt 0:05:40]} Qc7 {[%emt 0:02:15]} 18. Rhe1 {[%emt 0:03:49]} Bb4 $1 {[%emt 0:02:01] White is on the road to losing.} 19. f5 {[%emt 0:02:53]} (19. Kb1 $17) 19... f6 $19 {[%emt 0:04:32]} 20. Nf3 {[%emt 0:05:06]} e5 {[%emt 0:01:09]} ({Stronger than} 20... Qxc4 21. Qxc4 Rxc4 22. Rd8+ Ka7 23. Nd2 $15 (23. Rxe6 Bxc3 24. Rexe8 Rxe8 $17)) 21. b3 {[%emt 0:06:12]} (21. Kb1 {might work better.}) 21... Qa5 {[%emt 0:05:38]} 22. Kb2 {[%emt 0:00:53]} Bc6 {[%emt 0:00:11]} 23. Re3 $2 {[%emt 0:02:50]} (23. Nd2 {was the only chance.}) 23... Bc5 {[%emt 0:08:10] [#] Strongly threatening ...Rhd8.} 24. Ree1 $2 {[%emt 0:00:57]} (24. Qe2) 24... Rhd8 {[%emt 0:00:09] Black is clearly winning.} 25. Qe2 {[%emt 0:04:06]} Bb4 {[%emt 0:08:11] A strong pair of Bishops.} 26. Ne4 {[%emt 0:01:31]} Bxe4 {[%emt 0:01:20]} 27. Qxe4 {[%emt 0:00:27]} Bc3+ {[%emt 0:00:07]} 28. Kb1 {[%emt 0:00:16]} Bxe1 {[%emt 0:00:21]} 29. Rxe1 {[%emt 0:01:40]} Qc3 {[%emt 0:00:19]} 30. g4 {[%emt 0:01:13]} Rd7 {[%emt 0:01:24] ...Rcd8 is the strong threat.} 31. Rc1 {[%emt 0:01:11]} Qd3+ {[%emt 0:01:12]} 32. Qxd3 {[%emt 0:00:02]} Rxd3 {[%emt 0:00:06][%mdl 4096] Endgame KRR-KRN} 33. Ne1 {[%emt 0:00:44]} Rd2 {[%emt 0:00:25]} 34. Nc2 {[%emt 0:00:18]} Rcd8 {[%emt 0:00:15]} 35. Nb4 {[%emt 0:01:23]} R8d4 {[%emt 0:01:02]} 36. h3 {[%emt 0:00:43]} Rh2 {[%emt 0:01:53]} 37. Nd5 {[%emt 0:00:30]} Rdd2 {[%emt 0:00:23] ( -> ...Rb2+)} 38. Nc3 {[%emt 0:00:37]} Rxh3 {[%emt 0:00:24]} 39. c5 {[%emt 0:00:26]} Rhh2 {[%emt 0:00:29]} 40. Na4 {[%emt 0:00:00]} Kc7 {[%emt 0:00:00]} 41. a3 {[%emt 0:01:58]} Kc6 {[%emt 0:00:55]} 42. b4 {[%emt 0:00:43]} Rhg2 {[%emt 0:00:17]} 43. Nc3 {[%emt 0:01:25]} Rb2+ {[%emt 0:00:20]} 44. Ka1 {[%emt 0:00:27]} Rbc2 {[%emt 0:00:05] Weighted Error Value: White=0.82/Black=0.19 (very precise)} 0-1

[Event "European Women-ch 2023"]
[Site "Petrovac"]
[Date "2023.03.25"]
[Round "7.10"]
[White "Savina, Anastasia"]
[Black "Gunina, Valentina"]
[Result "1-0"]
[Annotator "TA"]
[ECO "D17"]
[WhiteElo "2345"]
[BlackElo "2478"]
[PlyCount "79"]
[EventDate "2023.03.15"]
[EventType "swiss"]
[EventCountry "MNE"]
[SourceTitle "playchess.com"]
[Source "ChessBase"]
[SourceQuality "1"]
[TimeControl "40/5400+30:1800+30"]

{[%evp 15,79,26,23,20,28,0,8,0,0,0,0,0,0,0,12,0,9,11,0,0,0,0,39,16,47,58,84,85,105,39,91,89,111,113,114,110,333,324,415,385,409,405,389,382,511,529,505,401,371,399,400,377,522,527,1060,1051,1193,958,1200,1187,925,766,775,705,2207,2117]} 1. d4 {[%emt 0:00:10]} d5 {[%emt 0:00:07]} 2. c4 {[%emt 0:00:10]} c6 {[%emt 0:00:05]} 3. Nf3 {[%emt 0:00:12]} Nf6 {[%emt 0:00:10]} 4. Nc3 {[%emt 0:00:20]} dxc4 {[%emt 0:00:08]} 5. a4 {[%emt 0:00:27]} Bf5 {[%emt 0:00:09]} 6. Ne5 {[%emt 0:01:06]} Nbd7 {[%emt 0:00:06]} 7. Nxc4 {[%emt 0:00:06]} Nb6 {[%emt 0:00:05] seems to push 7...Qc7 aside.} 8. Ne5 {[%emt 0:00:09]} a5 {[%emt 0:00:11]} 9. f3 {[%emt 0:00:47] D17: Slav Defence: 5 a4 Bf5: Lines with 6 Nh4 and 6 Ne5.} Nfd7 {[%emt 0:01:24]} 10. e4 {[%emt 0:00:24]} Nxe5 {[%emt 0:00:29]} 11. dxe5 {[%emt 0:00:05] The position is equal.} Qxd1+ {[%emt 0:00:20]} 12. Nxd1 {[%emt 0:00:15]} Be6 {[%emt 0:00:29]} 13. Nf2 {[%emt 0:00:46]} g6 {[%emt 0:08:06]} 14. Nd3 {[%emt 0:01:16]} Bg7 {[%emt 0:00:16]} 15. f4 {[%emt 0:02:12]} Nd7 {[%emt 0:03:01][%cal Bb6d7,Bd7c5,Bc5b3][%mdl 32] Prevents Nc5} 16. Be2 {[%emt 0:01:12] [#]} f5 $146 {[%emt 0:10:15]} ({Predecessor:} 16... f6 17. exf6 exf6 18. O-O O-O 19. Be3 Rfe8 20. Nf2 Bf8 21. Rac1 Bb3 22. Bd1 Bf7 {1-0 Sarana,A (2649)-Shimanov,A (2581) Speed Chess Super Swiss blitz 2021 (10)}) 17. exf5 {[%emt 0:06:04]} Bxf5 {[%emt 0:01:40]} 18. h4 {[%emt 0:00:54][%cal Bh2h4,Bh4h5][%mdl 32]} O-O-O {[%emt 0:03:31] [#] And now ...Bxd3 would win.} 19. Nf2 {[%emt 0:23:41]} Nc5 {[%emt 0:04:36]} 20. Be3 {[%emt 0:05:01]} Nb3 {[%emt 0:00:13]} 21. Rd1 {[%emt 0:03:59]} Kc7 {[%emt 0:25:49] [#]} 22. Bd3 {[%emt 0:22:38]} (22. h5 $1 $16 {[%cal Rh5h6]}) 22... e6 {[%emt 0:14:40]} ({Black should try} 22... Be6 $14) 23. h5 $16 {[%emt 0:09:58]} Bf8 {[%emt 0:08:31]} 24. g4 {[%emt 0:09:04]} (24. Bc4 {looks sharper.} Bc5 25. Ke2 Bxe3 26. Kxe3 Nc5 27. g4) 24... Bxd3 {[%emt 0:00:08]} (24... Bb4+ $2 25. Ke2 Bxd3+ 26. Rxd3 $18) 25. Rxd3 {[%emt 0:01:00]} Bb4+ $2 {[%emt 0:04:03] Black cannot hold the game after this.} (25... Rxd3 $16 {was necessary.} 26. Nxd3 Rg8) 26. Ke2 $18 {[%emt 0:01:07]} Nc5 {[%emt 0:01:00]} 27. Bxc5 {[%emt 0:04:52]} Bxc5 {[%emt 0:00:09]} 28. Rxd8 {[%emt 0:01:32]} Rxd8 {[%emt 0:00:06][%mdl 4096] Endgame KRB-KRN} 29. Ne4 {[%emt 0:00:11]} Kb6 {[%emt 0:01:24]} 30. Ng5 {[%emt 0:01:04][%csl LRe6,LRh7]} Rd4 {[%emt 0:02:51]} 31. Nxh7 {[%emt 0:02:52]} ({Weaker is} 31. Nxe6 Rxa4 32. Kf3 Rb4 $18) 31... gxh5 {[%emt 0:07:55]} 32. gxh5 {[%emt 0:00:04][%cal Bg4h5,Bh5h6][%mdl 32]} Rxf4 {[%emt 0:00:07][%cal Oc5d4]} 33. Nf6 {[%emt 0:00:46] Nd7+ would be deadly.} Rf2+ {[%emt 0:04:13]} 34. Kd3 {[%emt 0:01:22] Strongly threatening Nd7+. White is clearly winning.} Rf3+ {[%emt 0:00:35]} 35. Ke4 {[%emt 0:00:55]} Re3+ {[%emt 0:00:03]} 36. Kf4 {[%emt 0:00:06] Hoping for Nd7+.} Rd3 {[%emt 0:00:14] Prevents Nd7+} 37. h6 {[%emt 0:01:01]} Rd4+ {[%emt 0:00:33]} 38. Kf3 {[%emt 0:01:08] aiming for h7.} Rd3+ {[%emt 0:00:46]} 39. Ke2 {[%emt 0:00:28]} Re3+ {[%emt 0:00:42]} 40. Kd2 {[%emt 0:00:00] Weighted Error Value: White=0.11 (very precise) /Black=0.36} 1-0